Cogmind - Beta 16 @@@ ROGUE MODE // 2025.12.26 @ 22:00:41 Player: 2401 Result: Destroyed by P-60 Hacker with Shock Rifle Performance ------------- Evolutions (2) 1000 Regions Visited (6) 1200 Robots Destroyed (10) 50 Value Destroyed (143) 143 Prototype IDs (0) 0 Alien Tech Used (0) 0 Bonus (200) 200 TOTAL SCORE: 2593 Bonus ------- Entered Garrisons 200 Cogmind --------- Core Integrity 0/550 Matter 94/300 Energy 100/100 System Corruption 2% Temperature Cool (0) Movement Core (50) Location -8/Garrison Parts ------- > --- POWER (1) -------- (None) > --- PROPULSION (4) --- (None) > --- UTILITY (3) ------ Authchip [R/Combat] > --- WEAPON (3) ------- High-powered Shotgun > --- INVENTORY (5) ---- EM Pulse Gun Light Assault Rifle High-powered Shotgun Flak Cannon Peak State ------------ > --- POWER ------------ Nuclear Core > --- PROPULSION ------- Improved Aluminum Leg Hover Unit Hover Unit VTOL Module > --- UTILITY ---------- Large Matter Pod Improved Sensor Array > --- WEAPON ----------- Light Assault Rifle High-powered Shotgun High-powered Shotgun > --- INVENTORY -------- Trap Scanner EM Pulse Gun Light Assault Rifle [Rating: 20] Favorites ----------- Power Light Ion Engine Engine Light Ion Engine Power Core Nuclear Core Propulsion Aluminum Leg Treads Light Treads Leg Aluminum Leg Wheel Compact Wheel Hover Unit Hover Unit Flight Unit VTOL Module Utility Small Storage Unit Device Improved Sensor Array Storage Small Storage Unit Hackware Authchip [R/Combat] Weapon Light Assault Rifle Energy Gun EM Pulse Gun Ballistic Gun Light Assault Rifle Ballistic Cannon Flak Cannon Launcher Grenade Launcher Special Weapon Mining Laser Build | -11 -10 -10 -9 -9 -8 -8 ------- Run | Yrd Mat Min Mat Min Mat Gar Slots Evolved 4 | . . . 2 . 2 . Power . | . . . . . . . Propulsion 2 | . . . 1 . 1 . Utility 1 | . . . 1 . . . Weapon 1 | . . . . . 1 . Parts Attached 29 | 7 4 . 7 1 9 1 Power 3 | 2 . . . . 1 . Engine 2 | 2 . . . . . . Core 1 | . . . . . 1 . Reactor . | . . . . . . . Propulsion 10 | 2 2 . 4 1 1 . Treads 3 | . . . 3 . . . Leg 3 | 2 . . . 1 . . Wheel 1 | . . . 1 . . . Hover 2 | . 2 . . . . . Flight 1 | . . . . . 1 . Utility 6 | 1 . . 1 . 3 1 Device 2 | . . . . . 2 . Storage 3 | 1 . . 1 . 1 . Processor . | . . . . . . . Hackware 1 | . . . . . . 1 Protection . | . . . . . . . Artifact . | . . . . . . . Weapon 10 | 2 2 . 2 . 4 . Energy Gun 2 | 1 . . 1 . . . Energy Cannon . | . . . . . . . Ballistic Gun 5 | 1 1 . . . 3 . Ballistic Cannon 1 | . . . . . 1 . Launcher 1 | . 1 . . . . . Special Weapon 1 | . . . 1 . . . Impact Weapon . | . . . . . . . Slashing Weapon . | . . . . . . . Piercing Weapon . | . . . . . . . Special Melee Weapon . | . . . . . . . Unidentified Prototypes . | . . . . . . . Parts Lost 15 | . 1 . 7 1 . 6 Power 3 | . . . 1 1 . 1 Propulsion 6 | . . . 3 . . 3 Utility 1 | . . . . . . 1 Weapon 5 | . 1 . 3 . . 1 Highest Loss Streak 7 | . 1 . 7 1 . 4 To Critical Strikes . | . . . . . . . Average Backups 6 | 4 7 7 7 5 2 4 Power . | . 1 1 1 . . . Propulsion 2 | 2 3 3 2 2 . . Utility . | . . . . . . . Weapon 3 | . 2 3 3 3 2 4 Tool/Special . | . . . . . . . Unused Backups 1 | . 1 . . . . . Power . | . . . . . . . Propulsion 1 | . 1 . . . . . Utility . | . . . . . . . Weapon . | . . . . . . . Tool/Special . | . . . . . . . Average Slot Usage (%) 67 | . 84 85 72 15 63 45 Engine 8 | . 14 14 10 2 . . Core 1 | . . . . . 2 7 Treads 5 | . . . 20 2 . . Leg 10 | . 26 . . 7 9 4 Wheel 2 | . . . 9 . . . Hover 5 | . 1 28 . . 17 7 Device 3 | . . . . . 9 13 Storage 8 | . 14 14 11 2 3 . Energy Gun 8 | . 14 14 10 . . . Ballistic Gun 11 | . 13 14 9 . 20 6 Peak Build Rating 20 | 6 6 6 9 3 20 19 Average Rating 8 | 4 5 6 7 2 13 13 On Entrance 5 | . 6 6 6 3 2 15 Avg Prop Armor Cover (%) 15 | . . . 20 . 9 9 Naked Turns . | . . . . . . . Heaviest Build 15 | 13 13 12 15 5 11 11 Greatest Support 40 | 20 20 12 40 23 13 13 Greatest Overweight (x) 4 | 3 1 . 4 1 . 3 Average Overweight (x) . | . . . . . . . Largest Inventory Capacity 20 | 8 8 8 20 8 5 5 Average Capacity 7 | 7 8 8 8 5 5 5 Most Carried 8 | 6 8 7 8 7 5 5 Average Carried 6 | 4 7 7 7 5 2 4 Final Capacity 8 | 8 8 8 8 5 5 5 Final Carried 7 | 6 7 7 7 5 5 4 Class Distribution -------------------- 89% | Mutant 7% | Skirmisher 3% | Gunner Dominant Class ---------------- Mutant | -10/Materials Mutant | -10/Mines Mutant | -9/Materials Mutant | -9/Mines Skirmisher | -8/Materials Mutant | -8/Garrison Resources | -11 -10 -10 -9 -9 -8 -8 ----------- Run | Yrd Mat Min Mat Min Mat Gar Matter Collected 411 | 247 35 . 44 85 . . Remotely . | . . . . . . . Salvage Created 246 | . 146 . 85 . . 15 Parts 21 | . 10 . 7 . . 4 Haulers Intercepted . | . . . . . . . Recyclers Shooed . | . . . . . . . Parts Field Recycled . | . . . . . . . Retrieved Matter . | . . . . . . . Parts Self-Destructed . | . . . . . . . Prevented . | . . . . . . . Parts Restored . | . . . . . . . Kills | -11 -10 -10 -9 -9 -8 -8 ------- Run | Yrd Mat Min Mat Min Mat Gar Combat Hostiles Destroyed 8 | . 3 . 4 . . 1 Guns 7 | . 2 . 4 . . 1 AOE 1 | . 1 . . . . . Classes Destroyed 5 | . 3 . 1 . . 1 Recycler 1 | . 1 . . . . . Watcher 1 | . 1 . . . . . Swarmer 6 | . 3 . 3 . . . Cutter 1 | . . . . . . 1 Grunt 1 | . . . 1 . . . Best Kill Streak 4 | . 4 . 3 . . 1 Combat Bots Only 3 | . 3 . 3 . . 1 Max Kills in Single Turn 3 | . 3 . 1 . . 1 Gunslinging . | . . . . . . . Exploded 1 | . 1 . . . . . Melee . | . . . . . . . Uniques/NPCs Destroyed . | . . . . . . . Combat | -11 -10 -10 -9 -9 -8 -8 -------- Run | Yrd Mat Min Mat Min Mat Gar Hostile Shots Fired 333 | . 12 5 192 11 24 89 Missed 117 | . 5 2 65 7 10 28 Hits 216 | . 7 3 127 4 14 61 Melee 8 | . . . 1 1 . 6 Projectile 208 | . 7 3 126 3 14 55 AOE 2 | . . . . . . 2 Critical Strikes 5 | . . . . 1 . 4 Damage Taken 2434 | . 252 39 1091 61 112 879 Core 914 | . 51 10 251 50 21 531 Absorbed by Shields . | . . . . . . . Core Remaining (%) 66 | 100 . 75 . 24 . . Volleys Fired 38 | . 12 . 19 . . 7 Largest 2 | . 2 . 2 . . 1 Hottest 100 | . 70 . 100 . . 25 Shots Fired 64 | . 21 . 36 . . 7 Gun 60 | . 19 . 34 . . 7 Cannon . | . . . . . . . Launcher 2 | . 2 . . . . . Special 2 | . . . 2 . . . Kinetic 31 | . 7 . 17 . . 7 Thermal 19 | . . . 19 . . . Explosive 2 | . 2 . . . . . Electromagnetic 12 | . 12 . . . . . Robot Hit Streak 4 | . 2 . 4 . . 3 Robot Miss Streak 5 | . 3 . 3 . . 5 Penetration Max . | . . . . . . . Secondary Targets 1 | . . . 1 . . . Max Gunslinging Chain 1 | . . . 1 . . . Shots Hit Robots 30 | . 7 . 18 . . 5 Core Hits 18 | . 7 . 6 . . 5 Critical Kills . | . . . . . . . Critical Parts Destroyed . | . . . . . . . Critical Strikes . | . . . . . . . Melee Attacks . | . . . . . . . Impact . | . . . . . . . Slashing . | . . . . . . . Piercing . | . . . . . . . Sneak Attacks . | . . . . . . . Combat Hostiles . | . . . . . . . Follow-up Attacks . | . . . . . . . Damage Inflicted 568 | . 200 . 244 . . 124 Guns 459 | . 91 . 244 . . 124 Cannons . | . . . . . . . Explosions 109 | . 109 . . . . . Melee . | . . . . . . . Ramming . | . . . . . . . Kinetic 265 | . 25 . 116 . . 124 Thermal 128 | . . . 128 . . . Explosive 109 | . 109 . . . . . Electromagnetic 66 | . 66 . . . . . Impact . | . . . . . . . Slashing . | . . . . . . . Piercing . | . . . . . . . Highest Corruption 2 | . 1 1 . . . 2 Average Corruption 1 | . 1 1 . . . 1 Corruption Purged . | . . . . . . . Corruption Blocked . | . . . . . . . Effects 1 | . . 1 . . . . Matter Fused 1 | . . 1 . . . . Overload Shots . | . . . . . . . Overflow Damage 8 | . 8 . . . . . Projectiles . | . . . . . . . Explosions 8 | . 8 . . . . . Melee . | . . . . . . . Knockbacks . | . . . . . . . Impact . | . . . . . . . Kinetic . | . . . . . . . Secondary . | . . . . . . . Self-Inflicted Damage 13 | . 13 . . . . . Shots 1 | . 1 . . . . . Rammed 1 | . . . 1 . . . Targets Rammed 1 | . . . 1 . . . Kicked . | . . . . . . . Crushed . | . . . . . . . Highest Temperature 48 | . 20 . 48 . . 30 Average Temperature 17 | . 14 . 19 . . 10 Received Heat Transfer 477 | . . 24 102 18 . 333 Siege Activations . | . . . . . . . Martial Activations . | . . . . . . . Shielding Activations . | . . . . . . . Robots Disrupted . | . . . . . . . Combat Hostiles . | . . . . . . . Robots Corrupted . | . . . . . . . Combat Hostiles . | . . . . . . . Parts Fried . | . . . . . . . Impact Corruptions . | . . . . . . . Robots Melted . | . . . . . . . Combat Hostiles . | . . . . . . . Parts Melted 1 | . . . 1 . . . Heat Transferred 333 | . . . 333 . . . Parts Sabotaged . | . . . . . . . Parts Stolen . | . . . . . . . Parts Stripped . | . . . . . . . Power Chain Reactions . | . . . . . . . Alert | -11 -10 -10 -9 -9 -8 -8 ------- Run | Yrd Mat Min Mat Min Mat Gar Maximum Alert Level 1 | . . . . . . 1 Low Security (%) 99 | 100 100 100 100 100 100 95 Level 1 . | . . . . . . 4 Level 2 . | . . . . . . . Level 3 . | . . . . . . . Level 4 . | . . . . . . . Level 5 . | . . . . . . . High Security . | . . . . . . . Max Security . | . . . . . . . Peak Influence 210 | . 89 40 60 15 50 210 Initial 26 | . . 20 11 . 5 26 Average 15 | . 15 25 13 . 2 47 Influence Increases 629 | . 113 30 167 15 60 244 Destroy 0b10 Robot/C 160 | . 60 . 80 . . 20 Destroy 0b10 Robot/NC 10 | . 10 . . . . . Destroy Leader 22 | . 12 . 10 . . . Successful Hack 21 | . 7 . . . . 14 Disable Machine 15 | . 15 . . . . . Destroy Structure 11 | . 9 . 2 . . . Lose Combat Pursuer 390 | . . 30 75 15 60 210 Influence Decreases 419 | . 60 53 197 . 35 74 Entered New Map 76 | . . 33 19 . 10 14 Time Decay 212 | . 50 20 117 . 25 . Lost Part 131 | . 10 . 61 . . 60 Squads Dispatched 2 | . 1 . 1 . . . Investigation . | . . . . . . . Extermination . | . . . . . . . Reinforcement 2 | . 1 . 1 . . . Assault . | . . . . . . . Garrison . | . . . . . . . Intercept . | . . . . . . . Searches Triggered . | . . . . . . . Construction Impeded . | . . . . . . . Haulers Reinforced . | . . . . . . . Active Scanning Responses . | . . . . . . . Cargo Convoy Interrupts . | . . . . . . . Stealth | -11 -10 -10 -9 -9 -8 -8 --------- Run | Yrd Mat Min Mat Min Mat Gar Distress Signals . | . . . . . . . Communications Jammed . | . . . . . . . Distress Signals . | . . . . . . . Times Spotted 62 | . 9 3 23 2 5 20 Peak Tracking Total 18 | . 4 2 13 2 3 18 Tactical Retreats 10 | . . 1 2 1 2 4 Traps | -11 -10 -10 -9 -9 -8 -8 ------- Run | Yrd Mat Min Mat Min Mat Gar Traps Triggered 1 | . 1 . . . . . Indirectly . | . . . . . . . Trap Hack Attempts . | . . . . . . . Triggered . | . . . . . . . Disarmed . | . . . . . . . Reprogrammed . | . . . . . . . Reused . | . . . . . . . Traps Extracted . | . . . . . . . Installed . | . . . . . . . Triggered . | . . . . . . . Machines | -11 -10 -10 -9 -9 -8 -8 ---------- Run | Yrd Mat Min Mat Min Mat Gar Machines Disabled 1 | . 1 . . . . . Max in Single Turn 1 | . 1 . . . . . Machines Repaired . | . . . . . . . Machines Dismantled . | . . . . . . . Machines Sabotaged . | . . . . . . . Overloaded Fab Kills . | . . . . . . . Hacking | -11 -10 -10 -9 -9 -8 -8 --------- Run | Yrd Mat Min Mat Min Mat Gar Machines Accessed 7 | . 3 . 1 . 2 1 Terminals 5 | . 2 . 1 . 1 1 Fabricators . | . . . . . . . Repair Stations . | . . . . . . . Recycling Units 1 | . 1 . . . . . Scanalyzers . | . . . . . . . Garrison Access 1 | . . . . . 1 . Total Hacks 14 | . 6 . 2 . 4 2 Successful 4 | . 2 . . . 1 1 Failed 10 | . 4 . 2 . 3 1 Catastrophic 3 | . . . 1 . 1 1 Database Lockouts . | . . . . . . . Manual 4 | . . . 2 . 1 1 Terminals 10 | . 5 . 2 . 1 2 Fabricators . | . . . . . . . Repair Stations . | . . . . . . . Recycling Units 1 | . 1 . . . . . Scanalyzers . | . . . . . . . Garrison Access 3 | . . . . . 3 . Terminal Hacks 2 | . 1 . . . . 1 Branch Access Points 1 | . 1 . . . . . Garrison Registry 1 | . . . . . . 1 Fabricator Hacks . | . . . . . . . Repair Station Hacks . | . . . . . . . Recycling Unit Hacks 1 | . 1 . . . . . Report Inventory 1 | . 1 . . . . . Scanalyzer . | . . . . . . . Garrison Access Hacks 1 | . . . . . 1 . Unlock Access 1 | . . . . . 1 . Unauthorized Hacks . | . . . . . . . Terminals . | . . . . . . . Fabricators . | . . . . . . . Repair Stations . | . . . . . . . Recycling Units . | . . . . . . . Scanalyzers . | . . . . . . . Garrison Access . | . . . . . . . Data Cores Recovered . | . . . . . . . Used . | . . . . . . . Hacking Detections 5 | . 1 . 1 . 2 1 Full Trace Events . | . . . . . . . Feedback Events . | . . . . . . . Feedback Blocked . | . . . . . . . Robot Schematics Acquired . | . . . . . . . Robots Built . | . . . . . . . Authchips . | . . . . . . . Time . | . . . . . . . Total Robot Build Rating . | . . . . . . . Part Schematics Acquired . | . . . . . . . Parts Built . | . . . . . . . Authchips . | . . . . . . . Time . | . . . . . . . Total Part Build Rating . | . . . . . . . Part Studies Acquired . | . . . . . . . Parts Repaired . | . . . . . . . Time . | . . . . . . . Parts Recycled . | . . . . . . . Recycled Matter . | . . . . . . . Retrieved Matter . | . . . . . . . Retrieved Components . | . . . . . . . Parts Scanalyzed . | . . . . . . . Part Schematics Acquired . | . . . . . . . Parts Damaged . | . . . . . . . Bothacking | -11 -10 -10 -9 -9 -8 -8 ------------ Run | Yrd Mat Min Mat Min Mat Gar Used RIF Installer . | . . . . . . . Robots Hacked . | . . . . . . . Non-combat . | . . . . . . . Combat . | . . . . . . . Robot Hacks Applied . | . . . . . . . Relay Couplers Released . | . . . . . . . Fabnet Peak Effective % . | . . . . . . . Robots Rewired . | . . . . . . . Allies Hacked . | . . . . . . . Hacks Repelled . | . . . . . . . Allies | -11 -10 -10 -9 -9 -8 -8 -------- Run | Yrd Mat Min Mat Min Mat Gar Total Allies . | . . . . . . . Largest Group . | . . . . . . . Highest-Rated Group . | . . . . . . . Highest-Rated Ally . | . . . . . . . Total Orders . | . . . . . . . Ally Attacks . | . . . . . . . Total Damage . | . . . . . . . Kills . | . . . . . . . Allies Corrupted . | . . . . . . . Allies Melted . | . . . . . . . Intel | -11 -10 -10 -9 -9 -8 -8 ------- Run | Yrd Mat Min Mat Min Mat Gar Active Infowar (turns) 378 | . . . . . 195 183 Sensors 295 | . . . . . 195 100 Traps 248 | . . . . . 65 183 Robot Analysis Total . | . . . . . . . Derelict Logs Recovered 1 | . . 1 . . . . Drone Launches . | . . . . . . . Drone Recoveries . | . . . . . . . Exploration | -11 -10 -10 -9 -9 -8 -8 ------------- Run | Yrd Mat Min Mat Min Mat Gar Turns Passed 1623 | 84 488 57 442 110 245 197 Spaces Moved 1327 | 40 356 101 347 95 218 170 Core 120 | 11 . . 3 20 . 86 Treads 31 | . . . 18 13 . . Legs 476 | 29 330 . . 62 34 21 Wheels 326 | . . . 326 . . . Hover 374 | . 26 101 . . 184 63 Flight . | . . . . . . . Fastest Speed 50 | 50 56 56 100 50 66 50 Average Speed 98 | 131 115 56 104 111 74 90 Slowest Speed 250 | 200 130 56 250 160 120 200 Overloaded Moves . | . . . . . . . Propulsion Burnouts . | . . . . . . . Robots Hopped . | . . . . . . . Potential Cave-ins . | . . . . . . . Cave-ins Triggered . | . . . . . . . Exploration Rate (%) 28 | 5 43 24 34 42 18 34 Regions Visited 6 Branch Regions 2 Pre-discovered Areas . | . . . . . . . Known Exits Taken 2 | . 1 . . . 1 . Unknown Exits Taken 4 | 1 . 1 1 1 . . Scrap Searched 2 | . . . . 2 . . Spaces Dug 2 | . . . 2 . . . Terrain Destroyed 12 | . 10 . 2 . . . Melee . | . . . . . . . Projectile 2 | . . . 2 . . . AOE 10 | . 10 . . . . . Terrain Rammed . | . . . . . . . Walls Destroyed . | . . . . . . . Machines Disabled . | . . . . . . . Actions | -11 -10 -10 -9 -9 -8 -8 --------- Run | Yrd Mat Min Mat Min Mat Gar Total 1567 | 68 409 100 384 99 300 207 Wait 140 | 16 32 . 7 1 60 24 Move 1321 | 39 355 100 346 94 217 170 Hop . | . . . . . . . Pick Up 15 | 6 3 . 2 . 4 . Fast Attach 12 | 6 . . 1 1 3 1 Attach 14 | . 1 . 3 1 8 1 Detach 5 | . . . 1 . 4 . Swap 11 | 1 4 . 4 . 2 . Drop 6 | . 2 . . 2 2 . Fire 38 | . 12 . 19 . . 7 Melee . | . . . . . . . Ram 1 | . . . 1 . . . Kick . | . . . . . . . Crush . | . . . . . . . Escape Stasis . | . . . . . . . Rewire 4 | . . . . . . 4 Trap . | . . . . . . . Miscellaneous . | . . . . . . . Route ------- -11/Scrapyard -10/Materials -10/Mines -9/Materials -9/Mines -8/Materials -8/Garrison (discovered 3 exits: [Mat x3]) History --------- Turn | Location | Event 30 | -11/Scrapyard | Discovered new exit (range 15) 85 | -11/Scrapyard | Entered Materials 314 | -10/Materials | Build established: Mutant 334 | -10/Materials | Discovered new exit (range 12) 530 | -10/Materials | Identified exit to Mines 573 | -10/Materials | Entered Mines 575 | -10/Mines | Met a Derelict bent on vengeance 585 | -10/Mines | Learned Materials trap positions 595 | -10/Mines | Discovered new exit (range 13) 617 | -10/Mines | Assembled infested the area 630 | -10/Mines | Entered Materials 630 | -9/Materials | Evolved 2 slots: Propulsion x1, Utility x1 631 | -9/Materials | Loaded intel: 8 trap records 1057 | -9/Materials | Core integrity fell below 50% 1060 | -9/Materials | Discovered new exit (range 6) 1072 | -9/Materials | Entered Mines 1093 | -9/Mines | Lost 7 parts (1p3n3w) 1171 | -9/Mines | Discovered new exit (range 8) 1182 | -9/Mines | Entered Materials 1182 | -8/Materials | Evolved 2 slots: Propulsion x1, Weapon x1 1426 | -8/Materials | Identified exit to Garrison 1427 | -8/Materials | Entered Garrison 1462 | -8/Garrison | Discovered new exit (range 48) 1462 | -8/Garrison | Discovered new exit (range 58) 1462 | -8/Garrison | Discovered new exit (range 66) 1485 | -8/Garrison | Triggered checkpoint 1525 | -8/Garrison | Triggered checkpoint 1577 | -8/Garrison | Lost 4 parts (2n1u1w) 1599 | -8/Garrison | Triggered checkpoint 1599 | -8/Garrison | Core integrity fell below 50% 1616 | -8/Garrison | Core integrity fell below 20% 1624 | -8/Garrison | Destroyed by P-60 Hacker with Shock Rifle Last Messages --------------- Critical hit (Burn: +37). Attempting to rewire R-06 Scavenger. R-06 Scavenger is unpowered. Attempting to rewire R-06 Scavenger. R-06 Scavenger is unpowered. Attempting to rewire R-06 Scavenger. R-06 Scavenger is unpowered. Attempting to rewire R-06 Scavenger. R-06 Scavenger is unpowered. Nuclear Core destroyed. Critical hit (Burn: +37). Beams of light sweep through the air. An alarm sounds. Garrison Door activated. C-45 Heavy ARC bursts open, deploying its payload. S-10 Pest unfolds itself. Knocked back. Trap Scanner severed. C-17 Slicer destroyed. Map ----- +----------------------------------------------------+ | ?????????????????????????????????????????????????? | | ?????????????????????????????????????????????????? | | ????????????????????????????????################?? | | #???????????????????????????????# #?? | | #???????????????????????????????# < #?? | | #????????????????##############?# #?? | | #????????????????# #?# #########+##?? | | #????????????????# """" """" #?# #???????# #??? | | #????????????????# " " " " ### #???????# #??? | | #????????????????# " " " " ## ######??# #??? | | #????????????????# """" """" #??# #??? | | #????????????????# #??# #??? | | #????????????????# ## ### #??# #??? | | #????????????????# """" """" ## #?# #??# #??? | | #????????????????# " " " "^ ## #?# #### #??? | | ######???????????# " " " " ### #?# " ## #??? | | // !!#???????????# """" """" #?# #?# " + #??? | | / !#???????????# #?# #?# " ####??? | | / !#???????????##############?# #?# ###?????? | | / !#??????????????????????????# #?# #???????? | | ## ###??????????????????????????# #?# #???????? | | ?# #????????????????????????????# #?# ###?????? | | ?# #????????????????????????????# #?# #"#?????? | | ?# #????????###?????????????????# #?# "#?????? | | ?# #???????##T################### #?# "#?????? | | ##+##??????# s =c@ ### "#?????? | | #??????# s *%/ + + #"#?????? | | #??????# s ]!/ + + ###?????? | | ##^^#??????# #######p/##################???????? | | ##^^#??????# #?????# #????????????????????????? | | + #???#### ####### #????????????????????????? | | ## #???# + #????????????????????????? | | ?# #???# ## ####### #????????????????????????? | | ?# #####+## #?????# #????????????????????????? | | ?# ## ## #?????# #????????????????????????? | | ## ## ## #?????# #????????????????????????? | | # ####### #????????????????????????? | | + #????????????????????????? | | + #????????????????????????? | | #^^^## ## ##########????????????????????????? | | # ## ## ###???????????????????????????????? | | " #???????????????????????????????? | | " #???????????????????????????????? | | " #######?????????????????????????? | | "+% #?????????????????????????? | | # ## ## ####### ########??????????????????? | | # ## ## #######+## """"#???#####??????????? | | # ^ "#???#! [#??????????? | | + #^""""#???#! [#??????????? | | # ## #### #######???#! [#??????????? | +----------------------------------------------------+ Best States ------------- Heat Dissipation 31 Energy Generation 14 Energy Capacity 250 Matter Stores 277 Matter Capacity 450 Sight Range 16 Robot Scan Range 15 Terrain Scan Density 10 Evasion (%) 55 Recoil Reduction 1 Authchip Count 1 Item Schematics ----------------- None Robot Schematics ------------------ None Fabricated ------------ Nothing Repaired ---------- Nothing Studied --------- None Alien Tech Used ----------------- None Achievements -------------- None Challenges ------------ None Game ------ Seed AntisysSkeletonMatterbank Manual? 0 Play Time 00:27:48 Cumulative 10.7 hours Start 2025.12.26 @ 21:32:23 End 2025.12.26 @ 22:00:41 Sessions 1 Manual Loads 0 Difficulty Rogue Special Mode None Game No. 7 Rogue 7 Adventurer 0 Explorer 0 Win Type - Total 0 Types 0/0/0/0/0/0/0/0/0/0 Lore% 3 Gallery% 11 Achievement% 10 Wizard Run 0 Options --------- Layout 1 ASCII 0 Keyboard 0 Movement Vi Keybinds 0 Fullscreen 1 Font 24/Smallcaps Map View 50x35 Zoom Use 0% Tactical HUD 0 Map Filters NONE Filters NONE Steam 1 RUN: a480cae2-9a49-4409-baf6-16f04f7f31dc